Cogmind - Beta 15 @@@ ROGUE MODE // 2025.09.29 @ 22:24:49 Player: Autumn Result: Destroyed by D-53 Grenadier with Mini Grenade Launcher Performance ------------- Evolutions (0) 0 Regions Visited (2) 400 Robots Destroyed (6) 30 Value Destroyed (100) 100 Prototype IDs (2) 40 Alien Tech Used (0) 0 Bonus (0) 0 TOTAL SCORE: 570 Bonus ------- None Cogmind --------- Core Integrity 0/250 Matter 295/300 Energy 97/100 System Corruption 5% Temperature Cool (0) Movement Core (200) Ox3 Location -10/Mines Parts ------- > --- POWER (1) -------- (None) > --- PROPULSION (2) --- (None) > --- UTILITY (2) ------ Medium Storage Unit > --- WEAPON (2) ------- (None) > --- INVENTORY (10) --- Ion Engine Light Ion Engine Small Battery (100) Structural Scanner Utility Shielding Hardened Light Armor Plating Hardened Light Armor Plating Medium Laser Peak State ------------ > --- POWER ------------ Ion Engine > --- PROPULSION ------- Improved Aluminum Leg Improved Aluminum Leg > --- UTILITY ---------- Heat Sink Medium Storage Unit > --- WEAPON ----------- Heavy EM Pulse Gun Ripper > --- INVENTORY -------- Ion Engine Light Ion Engine Improved Aluminum Leg Improved Aluminum Leg Small Battery Structural Scanner Utility Shielding Hardened Light Armor Plating Hardened Light Armor Plating Medium Laser [Rating: 14] Favorites ----------- Power Ion Engine Engine Ion Engine Propulsion Light Treads Treads Light Treads Leg Improved Aluminum Leg Utility Small Storage Unit Device Heat Sink Storage Small Storage Unit Weapon Medium Laser Energy Gun Medium Laser Ballistic Gun Light Assault Rifle Slashing Weapon Ripper Build | -11 -10 -10 ------- Run | Yrd Mat Min Slots Evolved . | . . . Power . | . . . Propulsion . | . . . Utility . | . . . Weapon . | . . . Parts Attached 14 | 6 5 3 Power 1 | 1 . . Engine 1 | 1 . . Core . | . . . Reactor . | . . . Propulsion 6 | 2 2 2 Treads 2 | 2 . . Leg 4 | . 2 2 Wheel . | . . . Hover . | . . . Flight . | . . . Utility 3 | 1 2 . Device 1 | . 1 . Storage 2 | 1 1 . Processor . | . . . Hackware . | . . . Protection . | . . . Artifact . | . . . Weapon 4 | 2 1 1 Energy Gun 2 | 1 1 . Energy Cannon . | . . . Ballistic Gun 1 | 1 . . Ballistic Cannon . | . . . Launcher . | . . . Special Weapon . | . . . Impact Weapon . | . . . Slashing Weapon 1 | . . 1 Piercing Weapon . | . . . Special Melee Weapon . | . . . Unidentified Prototypes . | . . . Parts Lost 8 | . . 8 Power 1 | . . 1 Propulsion 4 | . . 4 Utility 1 | . . 1 Weapon 2 | . . 2 Highest Loss Streak 8 | . . 8 To Critical Strikes . | . . . Average Backups 4 | 2 3 8 Power 1 | . 1 1 Propulsion . | . . 1 Utility 2 | . 1 5 Weapon . | . . . Tool/Special . | . . . Unused Backups 8 | 1 1 6 Power 2 | . . 2 Propulsion 1 | 1 . . Utility 4 | . . 4 Weapon 1 | . 1 . Tool/Special . | . . . Average Slot Usage (%) 94 | . 95 90 Engine 13 | . 14 12 Treads 18 | . 23 . Leg 9 | . 4 25 Device 10 | . 9 12 Storage 14 | . 14 14 Energy Gun 17 | . 16 23 Ballistic Gun 9 | . 11 . Peak Build Rating 14 | 6 11 14 Average Rating 7 | 4 7 10 On Entrance 5 | . 6 11 Naked Turns . | . . . Heaviest Build 22 | 13 21 22 Greatest Support 40 | 40 40 26 Greatest Overweight (x) 6 | . . 6 Average Overweight (x) . | . . . Largest Inventory Capacity 10 | 8 10 10 Average Capacity 8 | 6 8 10 Most Carried 10 | 5 8 10 Average Carried 4 | 2 3 9 Final Capacity 10 | 8 10 10 Final Carried 8 | 2 8 8 Class Distribution -------------------- 100% | Mutant Dominant Class ---------------- Mutant | -10/Materials Mutant | -10/Mines Resources | -11 -10 -10 ----------- Run | Yrd Mat Min Matter Collected 313 | 229 36 48 Remotely . | . . . Salvage Created 193 | . 125 68 Parts 12 | . 9 3 Haulers Intercepted 1 | . 1 . Recyclers Shooed . | . . . Parts Field Recycled . | . . . Retrieved Matter . | . . . Parts Self-Destructed . | . . . Prevented . | . . . Kills | -11 -10 -10 ------- Run | Yrd Mat Min Combat Hostiles Destroyed 6 | . 2 4 Melee 1 | . . 1 Guns 5 | . 2 3 Classes Destroyed 4 | . 2 2 Hauler 1 | . 1 . Swarmer 3 | . . 3 Grunt 2 | . 2 . Assembled 1 | . . 1 Best Kill Streak 3 | . 2 3 Combat Bots Only 3 | . 2 3 Max Kills in Single Turn 2 | . 1 2 Gunslinging 1 | . . 1 Exploded . | . . . Melee 1 | . . 1 Uniques/NPCs Destroyed . | . . . Combat | -11 -10 -10 -------- Run | Yrd Mat Min Hostile Shots Fired 47 | . 8 39 Missed 13 | . 3 10 Hits 34 | . 5 29 Melee 8 | . . 8 Projectile 26 | . 5 21 AOE 15 | . . 15 Damage Taken 1013 | . 55 958 Core 255 | . . 255 Absorbed by Shields . | . . . Core Remaining (%) 100 | 100 . . Volleys Fired 12 | . 9 3 Largest 2 | . 2 2 Hottest 95 | . 95 95 Shots Fired 24 | . 18 6 Gun 24 | . 18 6 Cannon . | . . . Launcher . | . . . Special . | . . . Kinetic 7 | . 7 . Thermal 12 | . 9 3 Explosive . | . . . Electromagnetic 5 | . 2 3 Robot Hit Streak 4 | . 4 3 Robot Miss Streak 2 | . 2 1 Penetration Max . | . . . Secondary Targets 1 | . . 1 Max Gunslinging Chain 1 | . . 1 Shots Hit Robots 16 | . 10 6 Core Hits 12 | . 7 5 Critical Kills . | . . . Critical Parts Destroyed . | . . . Critical Strikes 2 | . 1 1 Burn 2 | . 1 1 Melee Attacks 3 | . . 3 Impact . | . . . Slashing 3 | . . 3 Piercing . | . . . Sneak Attacks . | . . . Combat Hostiles . | . . . Follow-up Attacks . | . . . Damage Inflicted 271 | . 119 152 Guns 186 | . 119 67 Cannons . | . . . Explosions . | . . . Melee 85 | . . 85 Ramming . | . . . Kinetic 27 | . 27 . Thermal 114 | . 75 39 Explosive . | . . . Electromagnetic 45 | . 17 28 Impact . | . . . Slashing 85 | . . 85 Piercing . | . . . Highest Corruption 5 | . . 5 Average Corruption 5 | . . 5 Corruption Purged . | . . . Corruption Blocked . | . . . Overload Shots . | . . . Overflow Damage 8 | . . 8 Projectiles . | . . . Explosions . | . . . Melee 8 | . . 8 Knockbacks . | . . . Impact . | . . . Kinetic . | . . . Secondary . | . . . Self-Inflicted Damage . | . . . Shots . | . . . Rammed . | . . . Targets Rammed . | . . . Kicked . | . . . Crushed . | . . . Highest Temperature 108 | . 108 6 Average Temperature 28 | . 35 3 Received Heat Transfer 50 | . 30 20 Siege Activations . | . . . Martial Activations . | . . . Shielding Activations . | . . . Robots Disrupted . | . . . Combat Hostiles . | . . . Robots Corrupted . | . . . Combat Hostiles . | . . . Parts Fried 1 | . . 1 Impact Corruptions . | . . . Robots Melted . | . . . Combat Hostiles . | . . . Parts Melted 1 | . 1 . Heat Transferred 481 | . 296 185 Parts Sabotaged . | . . . Parts Stolen . | . . . Parts Stripped . | . . . Power Chain Reactions . | . . . Alert | -11 -10 -10 ------- Run | Yrd Mat Min Maximum Alert Level . | . . . Low Security (%) 100 | 100 100 100 Level 1 . | . . . Level 2 . | . . . Level 3 . | . . . Level 4 . | . . . Level 5 . | . . . High Security . | . . . Max Security . | . . . Peak Influence 60 | . 40 60 Initial . | . . . Average 5 | . 2 17 Influence Increases 117 | . 47 70 Destroy 0b10 Robot/C 100 | . 40 60 Destroy 0b10 Robot/NC 5 | . 5 . Destroy Leader 12 | . 2 10 Influence Decreases 117 | . 47 70 Time Decay 77 | . 47 30 Lost Part 40 | . . 40 Squads Dispatched 1 | . 1 . Investigation . | . . . Extermination . | . . . Reinforcement 1 | . 1 . Assault . | . . . Garrison . | . . . Intercept . | . . . Searches Triggered . | . . . Construction Impeded . | . . . Haulers Reinforced . | . . . Active Scanning Responses . | . . . Cargo Convoy Interrupts . | . . . Stealth | -11 -10 -10 --------- Run | Yrd Mat Min Distress Signals 1 | . 1 . Communications Jammed . | . . . Distress Signals . | . . . Times Spotted 16 | . 5 11 Peak Tracking Total 19 | . 6 19 Tactical Retreats . | . . . Traps | -11 -10 -10 ------- Run | Yrd Mat Min Traps Triggered . | . . . Indirectly . | . . . Trap Hack Attempts . | . . . Triggered . | . . . Disarmed . | . . . Reprogrammed . | . . . Reused . | . . . Traps Extracted . | . . . Installed . | . . . Triggered . | . . . Machines | -11 -10 -10 ---------- Run | Yrd Mat Min Machines Disabled . | . . . Max in Single Turn . | . . . Machines Repaired . | . . . Machines Dismantled . | . . . Machines Sabotaged . | . . . Overloaded Fab Kills . | . . . Hacking | -11 -10 -10 --------- Run | Yrd Mat Min Machines Accessed 1 | . 1 . Terminals 1 | . 1 . Fabricators . | . . . Repair Stations . | . . . Recycling Units . | . . . Scanalyzers . | . . . Garrison Access . | . . . Total Hacks 2 | . 2 . Successful 1 | . 1 . Failed 1 | . 1 . Catastrophic . | . . . Database Lockouts . | . . . Manual . | . . . Terminals 2 | . 2 . Fabricators . | . . . Repair Stations . | . . . Recycling Units . | . . . Scanalyzers . | . . . Garrison Access . | . . . Terminal Hacks 1 | . 1 . Prototype ID Bank 1 | . 1 . Fabricator Hacks . | . . . Repair Station Hacks . | . . . Recycling Unit Hacks . | . . . Scanalyzer . | . . . Garrison Access Hacks . | . . . Unauthorized Hacks . | . . . Terminals . | . . . Fabricators . | . . . Repair Stations . | . . . Recycling Units . | . . . Scanalyzers . | . . . Garrison Access . | . . . Data Cores Recovered . | . . . Used . | . . . Hacking Detections 1 | . 1 . Full Trace Events . | . . . Feedback Events . | . . . Feedback Blocked . | . . . Robot Schematics Acquired . | . . . Robots Built . | . . . Authchips . | . . . Time . | . . . Total Robot Build Rating . | . . . Part Schematics Acquired . | . . . Parts Built . | . . . Authchips . | . . . Time . | . . . Total Part Build Rating . | . . . Parts Repaired . | . . . Time . | . . . Parts Recycled . | . . . Recycled Matter . | . . . Retrieved Matter . | . . . Retrieved Components . | . . . Parts Scanalyzed . | . . . Part Schematics Acquired . | . . . Parts Damaged . | . . . Bothacking | -11 -10 -10 ------------ Run | Yrd Mat Min Used RIF Installer . | . . . Robots Hacked . | . . . Non-combat . | . . . Combat . | . . . Robot Hacks Applied . | . . . Relay Couplers Released . | . . . Fabnet Peak Effective % . | . . . Robots Rewired . | . . . Allies Hacked . | . . . Hacks Repelled . | . . . Allies | -11 -10 -10 -------- Run | Yrd Mat Min Total Allies . | . . . Largest Group . | . . . Highest-Rated Group . | . . . Highest-Rated Ally . | . . . Total Orders . | . . . Ally Attacks . | . . . Total Damage . | . . . Kills . | . . . Allies Corrupted . | . . . Allies Melted . | . . . Intel | -11 -10 -10 ------- Run | Yrd Mat Min Active Infowar (turns) . | . . . Robot Analysis Total . | . . . Derelict Logs Recovered . | . . . Drone Launches . | . . . Drone Recoveries . | . . . Exploration | -11 -10 -10 ------------- Run | Yrd Mat Min Turns Passed 753 | 87 524 142 Spaces Moved 396 | 55 247 94 Core 15 | 14 . 1 Treads 229 | 41 188 . Legs 152 | . 59 93 Wheels . | . . . Hover . | . . . Flight . | . . . Fastest Speed 50 | 50 120 120 Average Speed 141 | 132 150 122 Slowest Speed 350 | 160 160 350 Overloaded Moves . | . . . Propulsion Burnouts . | . . . Robots Hopped . | . . . Potential Cave-ins . | . . . Cave-ins Triggered . | . . . Exploration Rate (%) 19 | 4 26 27 Regions Visited 2 Branch Regions 1 Pre-discovered Areas . | . . . Known Exits Taken . | . . . Unknown Exits Taken 2 | 1 1 . Scrap Searched . | . . . Spaces Dug . | . . . Terrain Destroyed . | . . . Melee . | . . . Projectile . | . . . AOE . | . . . Terrain Rammed . | . . . Walls Destroyed . | . . . Machines Disabled . | . . . Actions | -11 -10 -10 --------- Run | Yrd Mat Min Total 564 | 70 384 110 Wait 112 | . 107 5 Move 394 | 54 246 94 Hop . | . . . Pick Up 23 | 9 12 2 Fast Attach . | . . . Attach 11 | 6 3 2 Detach . | . . . Swap 3 | . 2 1 Drop 6 | 1 5 . Fire 12 | . 9 3 Melee 3 | . . 3 Ram . | . . . Kick . | . . . Crush . | . . . Escape Stasis . | . . . Rewire . | . . . Trap . | . . . Miscellaneous . | . . . Route ------- -11/Scrapyard -10/Materials -10/Mines History --------- Turn | Location | Event 7 | -11/Scrapyard | Discovered new exit (range 15) 88 | -11/Scrapyard | Entered Materials 309 | -10/Materials | Build established: Mutant 483 | -10/Materials | Discovered new exit (range 7) 612 | -10/Materials | Entered Mines 639 | -10/Mines | A weapon hastily lodged in a ceiling crevice suddenly fell to the ground 713 | -10/Mines | Assembled infested the area 745 | -10/Mines | Core integrity fell below 50% 746 | -10/Mines | Core integrity fell below 20% 754 | -10/Mines | Destroyed by D-53 Grenadier with Mini Grenade Launcher Last Messages --------------- System corrupted by crushing effect (+5). K-01 Serf collects debris. as-47908 destroyed. Imp. Aluminum Leg destroyed. U-05 Engineer lays Concrete. The unstable cave ceiling collapses. Heat Sink destroyed. Ion Engine destroyed. U-05 Engineer builds a Wall. K-01 Serf collects debris. as-35416 destroyed. The unstable cave ceiling collapses. K-01 Serf collects debris. Imp. Aluminum Leg destroyed. Ripper destroyed. U-05 Engineer lays Concrete. K-01 Serf collects debris. The unstable cave ceiling collapses. U-05 Engineer builds a Wall. Imp. Aluminum Leg destroyed. Map ----- +----------------------------------------------------+ | ??????????# #?# ## #????????????????????????????? | | ?????###### ## # #????????????????????????????? | | ###### # # ##???????????????????????????? | | #???????????????????????????? | | ####### ## #????????????????????????????? | | ??????### ###?# #????????????????????????????? | | ????????## ###???? #????????????????????????????? | | #############?????? ????????????????????????????? | | #???#####?##????????????????????????????? | | ######## #??## ##????###???????????????????????? | | ???????# #?## #???# ##??????????????????????? | | ???????# ### ##?# ###????????????????????? | | ?????### ## ## ???????????????????? | | ?????# ???????????????????? | | ?????# % % #?????????????????????? | | ?????# ###### ##? #?????????????????????? | | ???? ?????# ####?? #?????????????????????? | | ???####?????##k ## ##?# #?????????????????????? | | ?????????????# # ### ##????????????????????? | | ?????????????##!dd # ##???????????????????? | | ????????????## # #???????????????????? | | ???????????## #???????????????????? | | ??????????## #???????????????????? | | ??????????# #???????????????????? | | ??????????# #???????????????????? | | ??????????## @ #????????????????????? | | ???????????## #????????????????????? | | ????????????## a# #????????????????????? | | ?????????????#a ;# #????????????????????? | | ?????????????# "### ## ##????????????????????? | | ?????????????# ???##?# #?????????????????????? | | ?????????????# ?????? #?????????????????????? | | ?????????????# ?????? #?????????????????????? | | ?????????????# *????? #?????????????????????? | | ??????????????=%????? ##?????????????????????? | | ????????????????????# ##??????????????????????? | | ????????????????????# ###???????????????????????? | | ????????????????????# ??????????????????????????? | | ????????????????????# ??????????????????????????? | | ????????????????????# ??????????????????????????? | | ?????????????????????????????????????????????????? | | ?????????????????????????????????????????????????? | | ?????????????????????????????????????????????????? | | ?????????????????????????????????????????????????? | | ?????????????????????????????????????????????????? | | ?????????????????????????????????????????????????? | | ?????????????????????????????????????????????????? | | ?????????????????????????????????????????????????? | | ?????????????????????????????????????????????????? | | ?????????????????????????????????????????????????? | +----------------------------------------------------+ Best States ------------- Heat Dissipation 35 Energy Generation 10 Energy Capacity 250 Matter Stores 300 Matter Capacity 300 Sight Range 16 Terrain Scan Density 10 Evasion (%) 55 Recoil Reduction 2 Item Schematics ----------------- None Robot Schematics ------------------ None Fabricated ------------ Nothing Repaired ---------- Nothing Alien Tech Used ----------------- None Achievements -------------- None Challenges ------------ None Game ------ Seed SniperDeuteriumField Manual? 0 Play Time 00:08:12 Cumulative 6.2 hours Start 2025.09.29 @ 22:15:26 End 2025.09.29 @ 22:24:49 Sessions 1 Manual Loads 0 Difficulty Rogue Special Mode None Game No. 13 Rogue 13 Adventurer 0 Explorer 0 Win Type - Total 0 Types 0/0/0/0/0/0/0/0/0/0 Lore% 3 Gallery% 11 Achievement% 12 Wizard Run 0 Options --------- Layout 1 ASCII 0 Keyboard 0 Movement Arrows Keybinds 0 Fullscreen 1 Font 24/Smallcaps Map View 76x35 Zoom Use 0% Tactical HUD 0 Map Filters NONE Filters NONE Steam 1 RUN: a26eed03-dfdb-461e-9baa-12886a8d5282